Cogmind - Beta 17 @@@ ROGUE MODE // 2026.07.11 @ 19:34:00 Player: osman sinnoks Result: Core destroyed Performance ------------- Evolutions (4) 2000 Regions Visited (14) 2800 Robots Destroyed (204) 1020 Value Destroyed (7537) 7537 Prototype IDs (4) 80 Alien Tech Used (0) 0 Bonus (3756) 3756 TOTAL SCORE: 17193 Bonus ------- High Alert Combat Kills 262 Follower Combat Kills 537 Entered Garrisons 800 Used RIF Installer 2000 Aligned with FarCom 300 Friendly Fire -143 Cogmind --------- Core Integrity 0/850 Matter 271/300 Energy 100/100 System Corruption 12% Temperature Cool (0) Movement Core (50) Location -6/Extension Parts ------- > --- POWER (1) -------- (None) > --- PROPULSION (3) --- (None) > --- UTILITY (7) ------ Advanced Targeting Computer Weapon Cycler > --- WEAPON (4) ------- (None) > --- INVENTORY (5) ---- Light Fission Core Improved Heat Sink Flak Gun Remote Datajack Peak State ------------ > --- POWER ------------ Light Antimatter Reactor > --- PROPULSION ------- Light Treads Light Treads Advanced Treads > --- UTILITY ---------- Large Storage Unit Medium Matter Pod Advanced Targeting Computer Improved Medium Armor Plating Improved Medium Armor Plating Graphene Brace Relay Coupler [Brawler] > --- WEAPON ----------- Magnetic Acceleration Cannon Magnetic Acceleration Cannon Magnetic Acceleration Cannon Magnetic Acceleration Cannon > --- INVENTORY -------- Micro Nuclear Core Light Fission Core Improved Heat Sink Weapon Cycler Gauss Rifle Gauss Rifle Gauss Rifle Flak Gun Flak Gun Flak Gun KE Penetrator Remote Datajack [Rating: 60] Favorites ----------- Power Improved Deuterium Engine Engine Improved Deuterium Engine Power Core Light Nuclear Core Reactor Light Antimatter Reactor Propulsion Light Treads Treads Light Treads Leg Improved Aluminum Leg Utility Large Storage Unit Device Graphene Brace Storage Large Storage Unit Processor Targeting Computer Hackware Relay Coupler [Grunt] Protection Improved Light Armor Plating Weapon Flak Gun Energy Gun Gatling Laser Ballistic Gun Flak Gun Ballistic Cannon Magnetic Acceleration Cannon Launcher Grenade Launcher Special Weapon Remote Datajack Impact Weapon Heavy Mace Build | -11 -10 -10 -10 -9 -8 -8 -8 -8 -7 -7 -7 -7 -6 -6 ------- Run | Yrd Mat Min Exi Min Mat Gar Mat Gar Fac Gar Fac Gar Fac Ext Slots Evolved 8 | . . . . . 4 . . . 2 . . . 2 . Power . | . . . . . . . . . . . . . . . Propulsion 1 | . . . . . 1 . . . . . . . . . Utility 5 | . . . . . 3 . . . 1 . . . 1 . Weapon 2 | . . . . . . . . . 1 . . . 1 . Parts Attached 127 | 7 4 . 2 . 14 14 2 2 4 15 10 16 24 13 Power 14 | 1 . . . . 1 2 1 1 1 2 . 1 3 1 Engine 9 | 1 . . . . 1 1 1 1 . 2 . 1 1 . Core 4 | . . . . . . 1 . . 1 . . . 1 1 Reactor 1 | . . . . . . . . . . . . . 1 . Propulsion 36 | 2 . . . . 7 4 . 1 1 5 3 4 3 6 Treads 34 | 2 . . . . 6 4 . 1 1 4 3 4 3 6 Leg 2 | . . . . . 1 . . . . 1 . . . . Wheel . | . . . . . . . . . . . . . . . Hover . | . . . . . . . . . . . . . . . Flight . | . . . . . . . . . . . . . . . Utility 37 | 2 2 . . . 5 4 . . . 4 5 5 8 2 Device 6 | 1 . . . . 1 1 . . . . 1 1 . 1 Storage 6 | 1 2 . . . 1 . . . . . . . 2 . Processor 2 | . . . . . 1 . . . . . . . 1 . Hackware 4 | . . . . . . . . . . . 2 1 1 . Protection 19 | . . . . . 2 3 . . . 4 2 3 4 1 Artifact . | . . . . . . . . . . . . . . . Weapon 40 | 2 2 . 2 . 1 4 1 . 2 4 2 6 10 4 Energy Gun 4 | 1 . . . . 1 . . . . 1 . 1 . . Energy Cannon . | . . . . . . . . . . . . . . . Ballistic Gun 25 | 1 1 . 1 . . 3 1 . 2 3 1 5 5 2 Ballistic Cannon 6 | . . . . . . . . . . . . . 4 2 Launcher 2 | . 1 . 1 . . . . . . . . . . . Special Weapon 2 | . . . . . . . . . . . 1 . 1 . Impact Weapon 1 | . . . . . . 1 . . . . . . . . Slashing Weapon . | . . . . . . . . . . . . . . . Piercing Weapon . | . . . . . . . . . . . . . . . Special Melee Weapon . | . . . . . . . . . . . . . . . Unidentified Prototypes 2 | . . . 1 . . 1 . . . . . . . . Parts Lost 67 | . . . . . 1 10 . 2 . 12 1 8 12 21 Power 6 | . . . . . . 1 . 1 . 1 . 1 1 1 Propulsion 21 | . . . . . . 3 . 1 . 3 . 2 5 7 Utility 21 | . . . . . 1 4 . . . 3 . 3 6 4 Weapon 19 | . . . . . . 2 . . . 5 1 2 . 9 Highest Loss Streak 18 | . . . . . 1 4 . 2 . 10 1 3 5 18 To Critical Strikes . | . . . . . . . . . . . . . . . Average Backups 12 | . 3 6 8 10 13 11 12 13 13 11 13 13 13 12 Power 1 | . . . 1 1 1 1 2 2 1 1 3 2 1 2 Propulsion 1 | . . 1 1 1 4 2 1 1 1 1 2 1 1 1 Utility 4 | . 1 2 1 3 2 5 6 6 6 6 5 5 5 1 Weapon 3 | . 2 3 4 5 4 2 3 4 3 1 2 1 3 6 Tool/Special . | . . . . . . . . . . . . . . . Unused Backups 27 | . . . 1 . 3 3 2 . 4 . 2 7 . 5 Power 9 | . . . . . 1 1 1 . 2 . . 2 . 2 Propulsion 1 | . . . . . . . . . . . 1 . . . Utility 10 | . . . 1 . 1 1 1 . 2 . . 3 . 1 Weapon 6 | . . . . . 1 1 . . . . 1 2 . 1 Tool/Special 1 | . . . . . . . . . . . . . . 1 Average Slot Usage (%) 93 | . 100 100 91 85 87 97 90 89 88 94 99 99 92 84 Engine 5 | . 14 14 14 14 9 6 7 8 4 5 7 6 2 . Treads 22 | . 28 28 28 28 26 26 27 27 22 21 23 22 19 12 Device 6 | . 14 14 14 14 9 6 . . 5 7 6 3 3 8 Storage 13 | . 14 14 14 14 16 18 18 18 15 15 15 11 12 5 Processor 6 | . . . . . 8 9 9 9 7 7 7 7 6 6 Hackware 2 | . . . . . . . . . . . 1 9 6 5 Protection 9 | . . . . . 7 10 9 9 7 13 14 11 11 11 Energy Gun 1 | . 1 . . . . . . . . 4 5 1 . . Ballistic Gun 14 | . 12 14 13 14 8 9 16 16 14 14 16 20 16 18 Ballistic Cannon 2 | . . . . . . . . . . . . . 8 5 Launcher 1 | . 13 14 6 . . . . . . . . . . . Impact Weapon 1 | . . . . . . 7 1 1 7 1 . . . . Peak Build Rating 60 | 7 7 8 22 22 33 34 29 29 39 46 42 44 60 60 Average Rating 37 | 4 7 7 15 22 29 27 28 28 36 37 39 39 52 52 On Entrance 26 | . 7 7 8 22 22 33 28 29 28 39 36 36 43 57 Avg Prop Armor Cover (%) 5 | . . . . . 5 . . . . . . . . . Naked Turns . | . . . . . . . . . . . . . . . Heaviest Build 88 | 14 31 31 36 36 52 55 55 55 62 62 52 54 88 68 Greatest Support 70 | 40 40 40 40 40 60 60 60 60 60 60 70 70 62 69 Greatest Overweight (x) 3 | . . . . . . 1 . . 1 2 . . 1 3 Average Overweight (x) . | . . . . . . . . . . . . . . . Largest Inventory Capacity 15 | 8 15 15 15 15 15 15 15 15 15 15 15 15 15 15 Average Capacity 14 | 5 11 15 15 15 15 15 15 15 15 15 15 15 15 14 Most Carried 15 | 5 6 7 11 12 15 15 15 15 15 15 15 15 15 15 Average Carried 12 | . 3 6 8 10 13 12 13 14 14 11 13 13 13 12 Final Capacity 15 | 8 15 15 15 15 15 15 15 15 15 15 15 15 15 5 Final Carried 15 | . 6 7 9 9 15 13 15 14 15 10 13 15 12 4 Class Distribution -------------------- 34% | Mutant 33% | Scavenger-Tank 12% | Scavenger-Gunner 11% | Scavenger-Mutant 3% | Bothacker-Tank Dominant Class ---------------- Mutant | -10/Materials Mutant | -10/Mines Mutant | -10/Exiles Mutant | -9/Mines Mutant | -8/Materials Mutant | -8/Garrison Mutant | -8/Materials Mutant | -8/Garrison Scavenger-Mutant | -7/Factory Scavenger-Tank | -7/Garrison Scavenger-Tank | -7/Factory Bothacker-Tank | -7/Garrison Scavenger-Tank | -6/Factory Scavenger-Tank | -6/Extension Resources | -11 -10 -10 -10 -9 -8 -8 -8 -8 -7 -7 -7 -7 -6 -6 ----------- Run | Yrd Mat Min Exi Min Mat Gar Mat Gar Fac Gar Fac Gar Fac Ext Matter Collected 6546 | 274 131 93 276 124 143 538 41 196 145 263 756 616 2212 738 Remotely . | . . . . . . . . . . . . . . . Salvage Created 7341 | 52 199 93 . 160 878 908 . 229 218 460 945 709 1869 621 Parts 419 | 7 22 3 . 11 72 56 . 16 14 18 44 42 90 24 Haulers Intercepted . | . . . . . . . . . . . . . . . Recyclers Shooed 10 | . . . . . 2 . . . . . 2 . 5 1 Parts Field Recycled . | . . . . . . . . . . . . . . . Retrieved Matter . | . . . . . . . . . . . . . . . Parts Self-Destructed . | . . . . . . . . . . . . . . . Prevented . | . . . . . . . . . . . . . . . Parts Restored . | . . . . . . . . . . . . . . . Kills | -11 -10 -10 -10 -9 -8 -8 -8 -8 -7 -7 -7 -7 -6 -6 ------- Run | Yrd Mat Min Exi Min Mat Gar Mat Gar Fac Gar Fac Gar Fac Ext Combat Hostiles Destroyed 167 | . 11 3 . 6 14 28 . 10 7 11 17 17 32 11 Melee 5 | . . . . . . 4 . . 1 . . . . . Guns 135 | . 2 1 . 6 14 20 . 10 5 11 17 17 22 10 Cannons 11 | . . . . . . . . . . . . . 10 1 AOE 11 | . 9 2 . . . . . . . . . . . . Classes Destroyed 16 | 1 3 . . . 8 2 . . . . . . . 2 Worker 7 | . . . . . 1 . . . 1 . . . 4 1 Builder 4 | . . . . . 2 . . . . . . . 2 . Tunneler 3 | 3 . . . . . . . . . . . . . . Recycler 11 | . . . . . 2 . . . . . 2 . 6 1 Operator 1 | . . . . . 1 . . . . . . . . . Watcher 9 | . 2 . . . 2 . . . . . 3 . 2 . Swarmer 57 | . 6 . . 4 4 11 . 6 4 3 . 5 11 3 Cutter 2 | . . . . . . 2 . . . . . . . . Grunt 51 | . 5 3 . 2 2 7 . . 1 4 12 4 6 5 Sentry 22 | . . . . . 4 5 . . . 4 1 5 1 2 Specialist 3 | . . . . . 2 . . . . . . 1 . . Hunter 6 | . . . . . 1 . . 1 . . . . 4 . Programmer 22 | . . . . . . 3 . 2 2 . 4 2 9 . Heavy 3 | . . . . . 1 . . . . . . . 2 . Behemoth 1 | . . . . . . . . . . . . . . 1 Thug 1 | . . . . . . . . 1 . . . . . . Butcher 1 | . . . . . . . . . . . . . . 1 Best Kill Streak 9 | 1 4 3 . 6 7 9 . 4 4 4 4 6 6 6 Combat Bots Only 9 | . 3 3 . 6 5 9 . 4 4 4 4 6 6 6 Max Kills in Single Turn 3 | 1 2 2 . 1 1 2 . 2 1 2 2 2 3 2 Gunslinging 1 | . . . . . . 1 . 1 . 1 . 1 1 1 Exploded 2 | . 2 2 . . . . . . . . . . . . Melee 1 | . . . . . . 1 . . 1 . . . . . Uniques/NPCs Destroyed . | . . . . . . . . . . . . . . . Combat | -11 -10 -10 -10 -9 -8 -8 -8 -8 -7 -7 -7 -7 -6 -6 -------- Run | Yrd Mat Min Exi Min Mat Gar Mat Gar Fac Gar Fac Gar Fac Ext Hostile Shots Fired 1520 | . 24 10 . 10 50 216 4 59 32 357 109 142 238 269 Missed 434 | . 11 4 . 1 14 58 1 17 8 83 38 38 54 107 Hits 1086 | . 13 6 . 9 36 158 3 42 24 274 71 104 184 162 Melee 3 | . . . . . . 3 . . . . . . . . Projectile 1083 | . 13 6 . 9 36 155 3 42 24 274 71 104 184 162 AOE 2 | . . . . . . 1 . . . . . . 1 . Critical Strikes 34 | . . . . . 1 8 . 2 1 2 6 1 10 3 Actively Blocked 17 | . . . . . . 2 . . . 2 6 . 4 3 Part Disruptions 1 | . . . . . . . . . 1 . . . . . Damage Taken 14953 | . 189 120 . 87 488 2031 45 550 357 2460 832 1364 3768 2662 Core 1833 | . 11 . . 10 23 253 . 24 16 454 24 136 463 419 Absorbed by Shields . | . . . . . . . . . . . . . . . Regen/Repaired (Parts) 125 | . . . . . . . . . 125 . . . . . Core Remaining (%) 61 | 100 . . . 91 . . . 45 . . . 10 . . Volleys Fired 401 | 13 30 5 . . 3 52 2 26 7 27 55 37 110 34 Largest 4 | 2 2 2 . . 1 2 2 2 2 3 3 3 4 4 Hottest 176 | 60 50 50 . . 63 56 50 50 53 133 131 135 176 160 Shots Fired 1096 | 26 45 7 . 11 77 91 4 50 14 64 149 102 349 107 Gun 911 | 26 30 5 . 11 77 91 4 50 14 64 145 100 211 83 Cannon 156 | . . . . . . . . . . . . . 132 24 Launcher 17 | . 15 2 . . . . . . . . . . . . Special 12 | . . . . . . . . . . . 4 2 6 . Kinetic 995 | 13 28 5 . 11 74 91 4 50 14 50 119 86 343 107 Thermal 57 | . . . . . 3 . . . . 14 26 14 . . Explosive 17 | . 15 2 . . . . . . . . . . . . Electromagnetic 15 | 13 2 . . . . . . . . . . . . . Robot Hit Streak 23 | 6 10 11 . 7 21 17 7 6 7 10 13 23 12 18 Robot Miss Streak 12 | 3 3 . . 2 2 6 1 4 3 12 8 6 7 4 Penetration Max 1 | . . . . . . 1 . . . . . . 1 . Secondary Targets 20 | . . . . . . 1 . 3 . 3 . 8 4 1 Max Gunslinging Chain 2 | . . . . . . 1 . 1 . 1 . 2 1 1 Autonomous 100 | . . . . 11 74 9 . . . 6 . . . . Shots Hit Robots 770 | 14 26 5 . 8 63 83 4 34 17 49 99 69 228 71 Core Hits 537 | 5 25 7 . 7 28 33 . 16 10 38 81 67 172 48 Critical Kills 10 | . . . . 1 . 1 . . 2 1 . . 3 2 Critical Parts Destroyed 12 | . . . . . 3 6 . . 1 . . . 2 . Critical Strikes 26 | . . . . 1 3 7 . . 3 1 . . 8 3 Destroy 16 | . . . . 1 3 3 . . 1 1 . . 5 2 Blast 4 | . . . . . . . . . . . . . 3 1 Smash 6 | . . . . . . 4 . . 2 . . . . . Melee Attacks 149 | . . . . . . 125 . 1 17 6 . . . . Impact 149 | . . . . . . 125 . 1 17 6 . . . . Slashing . | . . . . . . . . . . . . . . . Piercing . | . . . . . . . . . . . . . . . Sneak Attacks 2 | . . . . . . 1 . . 1 . . . . . Combat Hostiles 1 | . . . . . . 1 . . . . . . . . Follow-up Attacks . | . . . . . . . . . . . . . . . Damage Inflicted 18510 | 132 987 251 . 259 1904 2353 75 577 561 962 1922 1402 5405 1720 Guns 13467 | 132 180 48 . 259 1894 1340 75 577 220 935 1904 1402 3205 1296 Cannons 2557 | . . . . . . . . . . . . . 2150 407 Explosions 1010 | . 807 203 . . . . . . . . . . . . Melee 1381 | . . . . . . 1013 . . 341 27 . . . . Ramming 95 | . . . . . 10 . . . . . 18 . 50 17 Kinetic 14754 | 53 180 48 . 259 1844 1340 75 577 220 737 1233 1130 5355 1703 Thermal 1191 | . . . . . 50 . . . . 198 671 272 . . Explosive 1010 | . 807 203 . . . . . . . . . . . . Electromagnetic 79 | 79 . . . . . . . . . . . . . . Impact 1381 | . . . . . . 1013 . . 341 27 . . . . Slashing . | . . . . . . . . . . . . . . . Piercing . | . . . . . . . . . . . . . . . Highest Corruption 12 | . 1 1 1 1 . 2 2 2 1 1 3 4 7 12 Average Corruption 3 | . 1 1 1 1 . 1 2 2 1 1 2 3 4 7 Corruption Purged . | . . . . . . . . . . . . . . . Corruption Blocked . | . . . . . . . . . . . . . . . Effects 184 | . 1 1 2 1 . 18 1 7 . 4 15 18 94 22 Message Errors 46 | . 1 1 1 . . 3 . 3 . 2 2 7 20 6 Matter Fused 48 | . . . 1 . . 7 1 . . 1 7 5 22 4 Heat Flow Errors 26 | . . . . . . 4 . 1 . 1 . 2 16 2 Energy Discharges 15 | . . . . 1 . 2 . 1 . . 1 . 6 4 Parts Rejected 1 | . . . . . . . . . . . . . 1 . Parts Fused 5 | . . . . . . . . . . . 1 . 3 1 Data Loss (minor) 21 | . . . . . . 1 . 1 . . 2 3 11 3 Data Loss (major) 7 | . . . . . . . . 1 . . . . 6 . Misfires 7 | . . . . . . . . . . . 1 1 4 1 Alerts 3 | . . . . . . . . . . . 1 . 1 1 Weapon Failures 5 | . . . . . . 1 . . . . . . 4 . Overload Shots . | . . . . . . . . . . . . . . . Overflow Damage 356 | . 60 . . . . 210 . . 55 . . . 31 . Projectiles 31 | . . . . . . . . . . . . . 31 . Explosions 60 | . 60 . . . . . . . . . . . . . Melee 265 | . . . . . . 210 . . 55 . . . . . Knockbacks 14 | . . . . . . 1 . . . . . . 13 . Impact 1 | . . . . . . 1 . . . . . . . . Kinetic 13 | . . . . . . . . . . . . . 13 . Secondary . | . . . . . . . . . . . . . . . Self-Inflicted Damage 124 | . 58 38 . . . . . . . . . . 27 1 Shots 5 | . 2 2 . . . . . . . . . . 1 . Rammed 16 | . . . . . 2 . . . . . 5 . 7 2 Targets Rammed 16 | . . . . . 2 . . . . . 5 . 7 2 Kicked . | . . . . . . . . . . . . . . . Crushed . | . . . . . . . . . . . . . . . Highest Temperature 593 | 60 2 19 . . 66 222 49 145 11 593 235 291 542 282 Average Temperature 100 | 32 2 12 . . 32 60 27 45 11 163 66 93 119 122 Received Heat Transfer 3130 | . 48 45 . 9 63 621 9 54 90 672 240 279 562 438 Effects 19 | . . . . . . 1 . . . 7 . . 11 . Shutdowns 2 | . . . . . . . . . . 1 . . 1 . Energy Bleed 2 | . . . . . . . . . . . . . 2 . Interference 8 | . . . . . . 1 . . . 3 . . 4 . Matter Decay 1 | . . . . . . . . . . . . . 1 . Short Circuit 1 | . . . . . . . . . . . . . 1 . Damage (minor) 1 | . . . . . . . . . . . . . 1 . Damage (major) 2 | . . . . . . . . . . 2 . . . . Damage (core) 2 | . . . . . . . . . . 1 . . 1 . Siege Activations . | . . . . . . . . . . . . . . . Martial Activations . | . . . . . . . . . . . . . . . Shielding Activations . | . . . . . . . . . . . . . . . Robots Disrupted . | . . . . . . . . . . . . . . . Combat Hostiles . | . . . . . . . . . . . . . . . Robots Corrupted 5 | . . . . . . 4 . . 1 . . . . . Combat Hostiles 5 | . . . . . . 4 . . 1 . . . . . Parts Fried 7 | . . . . . . 6 . . 1 . . . . . Impact Corruptions 8 | . . . . . . 6 . . 2 . . . . . Robots Melted . | . . . . . . . . . . . . . . . Combat Hostiles . | . . . . . . . . . . . . . . . Parts Melted 5 | . . . . . . . . . . . 5 . . . Heat Transferred 2417 | . . . . . 111 . . . . 450 1375 481 . . Parts Sabotaged . | . . . . . . . . . . . . . . . Parts Stolen . | . . . . . . . . . . . . . . . Parts Stripped . | . . . . . . . . . . . . . . . Power Chain Reactions . | . . . . . . . . . . . . . . . Alert | -11 -10 -10 -10 -9 -8 -8 -8 -8 -7 -7 -7 -7 -6 -6 ------- Run | Yrd Mat Min Exi Min Mat Gar Mat Gar Fac Gar Fac Gar Fac Ext Maximum Alert Level 3 | . . . . . 1 3 2 2 1 1 . 2 1 . Low Security (%) 67 | 100 100 100 . 100 86 3 . . 66 74 100 31 82 100 Level 1 14 | . . . . . 13 13 . 5 33 25 . 57 17 . Level 2 11 | . . . . . . 35 100 94 . . . 10 . . Level 3 6 | . . . . . . 47 . . . . . . . . Level 4 . | . . . . . . . . . . . . . . . Level 5 . | . . . . . . . . . . . . . . . High Security . | . . . . . . . . . . . . . . . Max Security . | . . . . . . . . . . . . . . . Peak Influence 983 | 5 188 86 . 138 252 983 479 558 292 215 112 420 245 113 Initial 479 | . . 60 . . . 162 479 298 292 11 112 59 220 113 Average 194 | . 94 44 . 54 84 639 461 475 146 108 31 237 127 35 Influence Increases 4955 | 15 380 96 . 148 554 921 40 300 183 264 373 501 923 257 Destroy 0b10 Robot/C 3240 | . 220 60 . 120 280 640 20 240 140 185 255 345 555 180 Destroy 0b10 Robot/NC 158 | 15 10 . . . 40 . . . 5 . 20 . 60 8 Destroy Leader 570 | . 44 10 . 20 84 20 10 30 30 8 86 40 172 16 Allied During Kill 87 | . . . . . . 12 5 14 . . 3 14 21 18 Successful Hack 69 | . 5 . . . 16 7 5 . . . 9 . . 27 Disable Machine 183 | . 30 15 . . 90 . . . . . . . 48 . Anti-Garrison Action 176 | . . . . . . 100 . . . 38 . 38 . . Destroy Structure 274 | . 56 11 . 8 44 82 . 1 8 9 . 4 43 8 Lose Combat Pursuer 198 | . 15 . . . . 60 . 15 . 24 . 60 24 . Influence Decreases 4955 | 15 225 215 36 148 304 188 564 201 724 66 503 166 1111 489 Entered New Map 1604 | . . 95 36 . . 88 504 161 266 6 103 26 200 119 Time Decay 2720 | 15 225 120 . 148 294 . 60 . 458 . 397 . 731 272 Lost Part 415 | . . . . . 10 100 . 20 . 60 3 80 120 22 Lost Ally 216 | . . . . . . . . 20 . . . 60 60 76 Squads Dispatched 33 | . 2 . . . 2 . . . 1 . 8 . 18 2 Investigation 3 | . . . . . . . . . . . . . 1 2 Extermination 12 | . . . . . . . . . 1 . 3 . 8 . Reinforcement 16 | . 2 . . . 2 . . . . . 3 . 9 . Assault . | . . . . . . . . . . . . . . . Garrison 2 | . . . . . . . . . . . 2 . . . Intercept . | . . . . . . . . . . . . . . . Searches Triggered . | . . . . . . . . . . . . . . . Construction Impeded 3 | . . . . . . . . . . . . . 3 . Haulers Reinforced 1 | . . . . . . . . . . . . . 1 . Active Scanning Responses . | . . . . . . . . . . . . . . . Cargo Convoy Interrupts . | . . . . . . . . . . . . . . . Stealth | -11 -10 -10 -10 -9 -8 -8 -8 -8 -7 -7 -7 -7 -6 -6 --------- Run | Yrd Mat Min Exi Min Mat Gar Mat Gar Fac Gar Fac Gar Fac Ext Distress Signals 10 | . 2 . . . 1 . . . . . 4 . 2 1 Communications Jammed . | . . . . . . . . . . . . . . . Distress Signals . | . . . . . . . . . . . . . . . Times Spotted 240 | . 20 4 . 5 17 33 1 13 7 11 25 29 52 23 Peak Tracking Total 8 | . 5 4 . 3 5 6 1 4 4 5 5 8 5 7 Tactical Retreats 9 | . 1 . . . . 2 . 1 . 1 . 2 2 . Traps | -11 -10 -10 -10 -9 -8 -8 -8 -8 -7 -7 -7 -7 -6 -6 ------- Run | Yrd Mat Min Exi Min Mat Gar Mat Gar Fac Gar Fac Gar Fac Ext Traps Triggered 14 | . 1 . . . . . . 1 . . . 3 8 1 Indirectly . | . . . . . . . . . . . . . . . Trap Hack Attempts . | . . . . . . . . . . . . . . . Triggered . | . . . . . . . . . . . . . . . Disarmed . | . . . . . . . . . . . . . . . Reprogrammed . | . . . . . . . . . . . . . . . Reused . | . . . . . . . . . . . . . . . Traps Extracted . | . . . . . . . . . . . . . . . Installed . | . . . . . . . . . . . . . . . Triggered . | . . . . . . . . . . . . . . . Machines | -11 -10 -10 -10 -9 -8 -8 -8 -8 -7 -7 -7 -7 -6 -6 ---------- Run | Yrd Mat Min Exi Min Mat Gar Mat Gar Fac Gar Fac Gar Fac Ext Machines Disabled 15 | . 2 1 . . 6 . . . . 1 . 1 4 . Max in Single Turn 1 | . 1 1 . . 1 . . . . 1 . 1 1 . Garrison Access 3 | . . . . . . . . . 1 . 1 . 1 . Garrison Relay 2 | . . . . . . . . . . 1 . 1 . . Machines Repaired . | . . . . . . . . . . . . . . . Machines Dismantled . | . . . . . . . . . . . . . . . Machines Sabotaged . | . . . . . . . . . . . . . . . Overloaded Fab Kills . | . . . . . . . . . . . . . . . Hacking | -11 -10 -10 -10 -9 -8 -8 -8 -8 -7 -7 -7 -7 -6 -6 --------- Run | Yrd Mat Min Exi Min Mat Gar Mat Gar Fac Gar Fac Gar Fac Ext Machines Accessed 26 | . 1 . . . 4 1 2 . 3 . 5 . 2 8 Terminals 12 | . 1 . . . 3 1 1 . . . . . . 6 Fabricators . | . . . . . . . . . . . . . . . Repair Stations 3 | . . . . . . . . . 1 . 1 . . 1 Recycling Units 3 | . . . . . . . . . . . 1 . 1 1 Scanalyzers 1 | . . . . . . . . . . . 1 . . . Garrison Access 7 | . . . . . 1 . 1 . 2 . 2 . 1 . Total Hacks 47 | . 2 . . . 10 1 4 . 5 . 8 . 4 13 Successful 26 | . 2 . . . 3 1 3 . 5 . 4 . 3 5 Failed 21 | . . . . . 7 . 1 . . . 4 . 1 8 Catastrophic 5 | . . . . . 3 . . . . . . . . 2 Database Lockouts . | . . . . . . . . . . . . . . . Manual 12 | . 1 . 1 . 9 . 1 . . . . . . . Terminals 24 | . 2 . . . 9 1 2 . . . . . . 10 Fabricators . | . . . . . . . . . . . . . . . Repair Stations 6 | . . . . . . . . . 2 . 2 . . 2 Recycling Units 7 | . . . . . . . . . . . 3 . 3 1 Scanalyzers 1 | . . . . . . . . . . . 1 . . . Garrison Access 9 | . . . . . 1 . 2 . 3 . 2 . 1 . Terminal Hacks 7 | . 1 . . . 1 1 1 . . . . . . 3 Prototype ID Bank 1 | . . . . . . . 1 . . . . . . . Open Door 4 | . . . . . . 1 . . . . . . . 3 Garrison Status 1 | . . . . . 1 . . . . . . . . . Zone Layout 1 | . 1 . . . . . . . . . . . . . Fabricator Hacks . | . . . . . . . . . . . . . . . Repair Station Hacks 4 | . . . . . . . . . 2 . 1 . . 1 Scan Component 3 | . . . . . . . . . 1 . 1 . . 1 Repair 1 | . . . . . . . . . 1 . . . . . Recycling Unit Hacks 4 | . . . . . . . . . . . 1 . 2 1 Process 1 | . . . . . . . . . . . 1 . . . Report Inventory 1 | . . . . . . . . . . . . . 1 . Retrieve Components 2 | . . . . . . . . . . . . . 1 1 Scanalyzer . | . . . . . . . . . . . . . . . Garrison Access Hacks 9 | . . . . . 1 . 2 . 3 . 2 . 1 . Unlock Access 4 | . . . . . 1 . 1 . 1 . 1 . . . Seal Access 3 | . . . . . . . . . 1 . 1 . 1 . Coupler Status 2 | . . . . . . . 1 . 1 . . . . . Unauthorized Hacks 2 | . 1 . . . 1 . . . . . . . . . Terminals 2 | . 1 . . . 1 . . . . . . . . . Botnet 2 | . 1 . . . 1 . . . . . . . . . Fabricators . | . . . . . . . . . . . . . . . Repair Stations . | . . . . . . . . . . . . . . . Recycling Units . | . . . . . . . . . . . . . . . Scanalyzers . | . . . . . . . . . . . . . . . Garrison Access . | . . . . . . . . . . . . . . . Data Cores Recovered 1 | . . . . . 1 . . . . . . . . . Used . | . . . . . . . . . . . . . . . Hacking Detections 14 | . 1 . . . 4 . 1 . 1 . 3 . 1 3 Full Trace Events 3 | . . . . . . . . . . . . . 1 2 Feedback Events . | . . . . . . . . . . . . . . . Feedback Blocked . | . . . . . . . . . . . . . . . Robot Schematics Acquired . | . . . . . . . . . . . . . . . Robots Built . | . . . . . . . . . . . . . . . Authchips . | . . . . . . . . . . . . . . . Time . | . . . . . . . . . . . . . . . Total Robot Build Rating . | . . . . . . . . . . . . . . . Part Schematics Acquired . | . . . . . . . . . . . . . . . Parts Built . | . . . . . . . . . . . . . . . Authchips . | . . . . . . . . . . . . . . . Time . | . . . . . . . . . . . . . . . Total Part Build Rating . | . . . . . . . . . . . . . . . Part Studies Acquired . | . . . . . . . . . . . . . . . Parts Repaired 1 | . . . . . . . . . 1 . . . . . Time 26 | . . . . . . . . . 26 . . . . . Parts Recycled . | . . . . . . . . . . . . . . . Recycled Matter 18 | . . . . . . . . . . . 18 . . . Retrieved Matter . | . . . . . . . . . . . . . . . Retrieved Components 13 | . . . . . . . . . . . . . 10 3 Parts Scanalyzed . | . . . . . . . . . . . . . . . Part Schematics Acquired . | . . . . . . . . . . . . . . . Parts Damaged . | . . . . . . . . . . . . . . . Bothacking | -11 -10 -10 -10 -9 -8 -8 -8 -8 -7 -7 -7 -7 -6 -6 ------------ Run | Yrd Mat Min Exi Min Mat Gar Mat Gar Fac Gar Fac Gar Fac Ext Used RIF Installer 4 | . . . . . . 1 . 1 . 1 . 1 . . Hotswap 1 | . . . . . . . . . . . . 1 . . Threat Obfuscator 1 | . . . . . . . . . . 1 . . . . Watcher Feeds 1 | . . . . . . . . 1 . . . . . . Robots Hacked 10 | . . . . . . . . . . . 3 1 6 . Non-combat 2 | . . . . . . . . . . . 1 . 1 . Combat 8 | . . . . . . . . . . . 2 1 5 . Robot Hacks Applied 11 | . . . . . . . . . . . 4 1 6 . no_distress 3 | . . . . . . . . . . . 2 . 1 . formatsys_high 8 | . . . . . . . . . . . 2 1 5 . Relay Couplers Released 7 | . . . . . . . . . . 4 . 3 . . Machine Destruction 7 | . . . . . . . . . . 4 . 3 . . Attached 4 | . . . . . . . . . . . 2 1 1 . Fabnet Peak Effective % . | . . . . . . . . . . . . . . . Robots Rewired 3 | . . . . . . . . . . . . . . 3 Allies Hacked . | . . . . . . . . . . . . . . . Hacks Repelled . | . . . . . . . . . . . . . . . Allies | -11 -10 -10 -10 -9 -8 -8 -8 -8 -7 -7 -7 -7 -6 -6 -------- Run | Yrd Mat Min Exi Min Mat Gar Mat Gar Fac Gar Fac Gar Fac Ext Total Allies 16 | . . . . . . 2 . . . . 2 1 5 6 Largest Group 4 | . . . . . . 2 2 2 . . 2 2 3 4 Highest-Rated Group 107 | . . . . . . 62 62 62 . . 64 64 87 107 Highest-Rated Ally 39 | . . . . . . 31 31 31 . . 32 32 29 39 Total Orders 2 | . . . . . . . . . . . 2 . . . STAY 1 | . . . . . . . . . . . 1 . . . FOLLOW 1 | . . . . . . . . . . . 1 . . . Ally Attacks 117 | . . . . . . 14 3 19 . . . 18 32 31 Total Damage 1847 | . . . . . . 249 63 228 . . . 407 416 484 Kills 20 | . . . . . . 4 1 2 . . . 6 6 1 Allies Corrupted 1 | . . . . . . . . 1 . . . . . . Allies Melted . | . . . . . . . . . . . . . . . Intel | -11 -10 -10 -10 -9 -8 -8 -8 -8 -7 -7 -7 -7 -6 -6 ------- Run | Yrd Mat Min Exi Min Mat Gar Mat Gar Fac Gar Fac Gar Fac Ext Active Infowar (turns) 3457 | 30 683 242 370 403 823 906 . . . . . . . . Structural 93 | . . . . . 93 . . . . . . . . . Seismic 3457 | 30 683 242 370 403 823 906 . . . . . . . . Robot Analysis Total . | . . . . . . . . . . . . . . . Derelict Logs Recovered . | . . . . . . . . . . . . . . . Drone Launches . | . . . . . . . . . . . . . . . Drone Recoveries . | . . . . . . . . . . . . . . . Exploration | -11 -10 -10 -10 -9 -8 -8 -8 -8 -7 -7 -7 -7 -6 -6 ------------- Run | Yrd Mat Min Exi Min Mat Gar Mat Gar Fac Gar Fac Gar Fac Ext Turns Passed 14427 | 136 683 242 370 403 823 1791 136 731 1153 527 1783 825 4002 822 Spaces Moved 6425 | 72 369 144 228 245 462 759 73 406 521 235 857 346 1375 333 Core 102 | 26 . . . . . . . . . . . . . 76 Treads 6316 | 46 369 144 228 245 462 759 73 406 521 228 857 346 1375 257 Legs 7 | . . . . . . . . . . 7 . . . . Wheels . | . . . . . . . . . . . . . . . Hover . | . . . . . . . . . . . . . . . Flight . | . . . . . . . . . . . . . . . Fastest Speed 50 | 50 160 160 160 160 160 160 160 160 160 160 155 155 155 50 Average Speed 177 | 120 160 160 160 160 160 160 160 160 180 167 155 157 228 191 Slowest Speed 400 | 160 160 160 160 160 160 240 160 160 240 270 160 160 240 400 Overloaded Moves . | . . . . . . . . . . . . . . . Propulsion Burnouts . | . . . . . . . . . . . . . . . Robots Hopped . | . . . . . . . . . . . . . . . Potential Cave-ins . | . . . . . . . . . . . . . . . Cave-ins Triggered 1 | . . . . . . . . . . . . . . 1 Exploration Rate (%) 37 | 4 57 34 60 56 38 67 12 53 10 35 23 45 25 43 Regions Visited 14 Branch Regions 4 Pre-discovered Areas . | . . . . . . . . . . . . . . . Known Exits Taken 4 | . . . . . 1 . 1 . 1 . 1 . . . Unknown Exits Taken 6 | 1 1 1 1 1 . . . . . . . . 1 . Scrap Searched 1 | . . . . 1 . . . . . . . . . . Spaces Dug 62 | . . . . . . 48 . 1 9 4 . . . . Terrain Destroyed 271 | . 75 17 . 13 45 50 . 1 9 5 . . 50 6 Melee 62 | . . . . . . 48 . 1 9 4 . . . . Projectile 117 | . . . . 13 45 2 . . . 1 . . 50 6 AOE 92 | . 75 17 . . . . . . . . . . . . Terrain Rammed . | . . . . . . . . . . . . . . . Walls Destroyed . | . . . . . . . . . . . . . . . Machines Disabled . | . . . . . . . . . . . . . . . Actions | -11 -10 -10 -10 -9 -8 -8 -8 -8 -7 -7 -7 -7 -6 -6 --------- Run | Yrd Mat Min Exi Min Mat Gar Mat Gar Fac Gar Fac Gar Fac Ext Total 8467 | 98 416 149 234 258 548 1037 90 446 696 305 1201 559 1983 447 Wait 1021 | . 4 . . 8 25 56 3 10 127 6 247 121 396 18 Move 6414 | 71 368 143 227 244 462 758 73 405 520 234 857 345 1374 333 Hop . | . . . . . . . . . . . . . . . Pick Up 158 | 7 8 1 2 3 24 16 6 1 9 10 13 21 27 10 Fast Attach 7 | . . . . . . . . . 2 . . . 3 2 Attach 92 | 7 . . 1 . 7 14 . 2 2 16 4 8 19 12 Detach 5 | . . . 2 . . 1 . . . 2 . . . . Swap 81 | . 4 . 1 . 9 6 2 1 3 3 9 12 29 2 Drop 94 | . 2 . 1 3 16 9 4 . 9 1 11 15 14 9 Fire 401 | 13 30 5 . . 3 52 2 26 7 27 55 37 110 34 Melee 149 | . . . . . . 125 . 1 17 6 . . . . Ram . | . . . . . . . . . . . . . . . Kick . | . . . . . . . . . . . . . . . Crush 15 | . . . . . 2 . . . . . 5 . 7 1 Escape Stasis 6 | . . . . . . . . . . . . . 4 2 Rewire 24 | . . . . . . . . . . . . . . 24 Trap . | . . . . . . . . . . . . . . . Miscellaneous . | . . . . . . . . . . . . . . . Route ------- -11/Scrapyard -10/Materials (discovered 3 exits: [*Mat x2] / [*Min]) -10/Mines (discovered 2 exits: [*Mat] / *Exi) -10/Exiles -9/Mines -8/Materials -8/Garrison (discovered 2 exits: *Mat x2) -8/Materials -8/Garrison (discovered 2 exits: *Fac x2) -7/Factory (discovered 4 exits: *Fac / [*Sto] / [*Low] / Gar) -7/Garrison -7/Factory (discovered 3 exits: *Fac / [*Sto] / Gar) -7/Garrison -6/Factory (discovered 2 exits: [*Low] / *Ext) -6/Extension History --------- Turn | Location | Event 12 | -11/Scrapyard | Discovered new exit (range 15) 137 | -11/Scrapyard | Entered Materials 315 | -10/Materials | Build established: Mutant 536 | -10/Materials | Discovered new exit (range 13) 680 | -10/Materials | Discovered new exit (range 8) 727 | -10/Materials | Discovered new exit (range 10) 820 | -10/Materials | Entered Mines 833 | -10/Mines | Discovered new exit (range 4) 1027 | -10/Mines | Found a hidden stash of uninstalled traps 1054 | -10/Mines | Deemed a non-threat by the Exiles lab entrance 1056 | -10/Mines | Discovered new exit (range 5) 1062 | -10/Mines | Entered Exiles 1102 | -10/Exiles | Met 8R-AWN 1131 | -10/Exiles | Met EX-HEX 1176 | -10/Exiles | Met EX-BIN 1198 | -10/Exiles | Aligned with FarCom system 1200 | -10/Exiles | Given EX-Vault access code 1237 | -10/Exiles | Opened EX-Vault 1244 | -10/Exiles | Found Prototype Ballistic Gun 1245 | -10/Exiles | Identified AWS/Gauss 1275 | -10/Exiles | Warned to stay clear of 0b10 Research branches 1325 | -10/Exiles | Met EX-DEC 1412 | -10/Exiles | Discovered new exit (range 14) 1432 | -10/Exiles | Left Exiles lab with AWS/Gauss 1432 | -10/Exiles | Entered Mines 1460 | -9/Mines | Met a Derelict bent on vengeance 1815 | -9/Mines | Discovered new exit (range 10) 1825 | -9/Mines | Received a Rocket Launcher from a helpful Derelict 1835 | -9/Mines | Entered Materials 1835 | -8/Materials | Evolved 4 slots: Propulsion x1, Utility x3 2658 | -8/Materials | Identified exit to Garrison 2658 | -8/Materials | Entered Garrison 2924 | -8/Garrison | Triggered checkpoint 2942 | -8/Garrison | Build established: Scavenger-Mutant 3288 | -8/Garrison | Build established: Mutant 3306 | -8/Garrison | Triggered checkpoint 3415 | -8/Garrison | Destroyed 9 combat bots 3443 | -8/Garrison | Discovered new exit (range 10) 3532 | -8/Garrison | Triggered checkpoint 3622 | -8/Garrison | Lost 4 parts (3n1u) 4146 | -8/Garrison | Rescued a captive Derelict 4148 | -8/Garrison | Rescued a captive Derelict 4156 | -8/Garrison | Core integrity fell below 50% 4314 | -8/Garrison | Triggered checkpoint 4360 | -8/Garrison | Installed Relay Interface Framework 4421 | -8/Garrison | Discovered new exit (range 15) 4449 | -8/Garrison | Entered Materials 4449 | -8/Materials | Accompanied by 2 allies 4585 | -8/Materials | Identified exit to Garrison 4585 | -8/Materials | Entered Garrison 4585 | -8/Garrison | Accompanied by 2 allies 4789 | -8/Garrison | Discovered new exit (range 9) 4893 | -8/Garrison | Triggered checkpoint 4955 | -8/Garrison | Triggered checkpoint 5061 | -8/Garrison | Triggered checkpoint 5173 | -8/Garrison | Discovered new exit (range 15) 5196 | -8/Garrison | Expanded RIF knowledge: Watcher Feeds 5316 | -8/Garrison | Entered Factory 5316 | -7/Factory | Evolved 2 slots: Utility x1, Weapon x1 5678 | -7/Factory | Discovered new exit (range 8) 5890 | -7/Factory | Discovered new exit (range 9) 5914 | -7/Factory | Build established: Scavenger-Mutant 6023 | -7/Factory | Discovered new exit (range 15) 6401 | -7/Factory | Repaired Lgt. Treads 6461 | -7/Factory | Identified exit to Garrison 6469 | -7/Factory | Entered Garrison 6563 | -7/Garrison | Triggered checkpoint 6574 | -7/Garrison | Lost 10 parts (1p3n2u4w) 6588 | -7/Garrison | Expanded RIF knowledge: Threat Obfuscation 6705 | -7/Garrison | Garrison Relay disabled 6807 | -7/Garrison | Triggered checkpoint 6833 | -7/Garrison | Triggered checkpoint 6868 | -7/Garrison | Core integrity fell below 50% 6881 | -7/Garrison | AWS/Gauss suddenly broke down 6975 | -7/Garrison | Discovered new exit (range 13) 6996 | -7/Garrison | Entered Factory 7175 | -7/Factory | Build established: Scavenger-Tank 7581 | -7/Factory | Garrison activated, responded to threat 7891 | -7/Factory | Discovered new exit (range 12) 8753 | -7/Factory | Discovered new exit (range 15) 8778 | -7/Factory | Identified exit to Garrison 8779 | -7/Factory | Entered Garrison 8779 | -7/Garrison | Accompanied by 2 allies 8817 | -7/Garrison | Triggered checkpoint 8989 | -7/Garrison | Build established: Bothacker-Tank 9000 | -7/Garrison | Triggered checkpoint 9165 | -7/Garrison | Triggered checkpoint 9204 | -7/Garrison | Core integrity fell below 20% 9226 | -7/Garrison | Lost 3 parts (1n1u1w) 9274 | -7/Garrison | Lost 3 parts (2u1w) 9318 | -7/Garrison | Discovered new exit (range 13) 9389 | -7/Garrison | Triggered checkpoint 9470 | -7/Garrison | Expanded RIF knowledge: Hotswap 9519 | -7/Garrison | Garrison Relay disabled 9565 | -7/Garrison | Build established: Scavenger-Gunner 9604 | -7/Garrison | Entered Factory 9604 | -6/Factory | Evolved 2 slots: Utility x1, Weapon x1 10728 | -6/Factory | Discovered new exit (range 6) 11016 | -6/Factory | Lost 3 allies 11059 | -6/Factory | Lost 5 parts (1p2n2u) 11269 | -6/Factory | Build established: Scavenger-Tank 12447 | -6/Factory | Discovered new exit (range 15) 13513 | -6/Factory | Core integrity fell below 50% 13606 | -6/Factory | Entered Extension 13698 | -6/Extension | Rescued a captive Derelict 14096 | -6/Extension | Rescued a captive Derelict 14130 | -6/Extension | Lost 3 parts (1p1u1w) 14134 | -6/Extension | Lost 4 allies 14276 | -6/Extension | Rescued a captive Derelict 14319 | -6/Extension | Rescued a captive Derelict 14342 | -6/Extension | Spotted B-75 Beast 14353 | -6/Extension | Spotted B-75 Beast 14383 | -6/Extension | Destroyed B-75 Beast 14385 | -6/Extension | Crushed by falling debris 14385 | -6/Extension | Core integrity fell below 20% 14385 | -6/Extension | System corruption reached 10% 14422 | -6/Extension | Lost 18 parts (7n3u8w) 14428 | -6/Extension | Core destroyed Last Messages --------------- 14385_ System corrupted by crushing effect (+1). 14386_ Acquired 32 matter. 14386_ Flak Gun destroyed. 14386_ Imp. Treads destroyed. 14387_ Dropped Mic. Nuclear Core. 14388_ System corrupted: Matter fused (-6). 14388_ Lgt. Treads destroyed. 14388_ Dropped Graphene Brace. 14388_ Dropped Lrg. Storage Unit. 14389_ Acquired 7 matter. 14390_ Acquired 60 matter. 14391_ Lgt. Treads destroyed. 14392_ Acquired 6 matter. 14394_ Machine disabled. 14412_ Connecting with Door Terminal... 14412_ ALERT: Suspicious activity at Terminal E007. Dispatching Investigation squad. 14418_ XCZLEVMY&F3LHDSSH2HU 14428_ Slammed into Y-54 Guardian. 14428_ Destabilizing: Core damaged (-34). Map ----- +----------------------------------------------------+ | | | | | | | | | | | | | | | | | | | | | | | | | | | | | | | | | ?????????????????????????????????????????????????? | | ?????????????????????????????????????????????????? | | ?????????????????????????????????????????????????? | | ?????????????????????????????????????????????????? | | ?????????????????????????????????????????????????? | | ?????????????????????????????????????????????????? | | ??????##""##?????????????????????????????????????? | | ###???#T #?????????????????????????????????????? | | ###### ################## #####????????????????? | | Y @Y +????????????????? | | ###############+######### ### #????????????????? | | ##????????????# T??????????????????????????????? | | #?????????????##"#??????????????????????????????? | | #???????????????????????????????????????????????? | | #???????????????????????????????????????????????? | | #???????????????????????????????????????????????? | | #???????????????????????????????????????????????? | | #???????????????????????????????????????????????? | | ###?????????????????????????????????????????????? | | #T#?????????????????????????????????????????????? | | "?????????????????????????????????????????????? | | ###?????????????????????????????????????????????? | | #???????????????????????????????????????????????? | | #???????????????????????????????????????????????? | | #???????????????????????????????????????????????? | | #???????????????????????????????????????????????? | | #???????????????????????????????????????????????? | | #???????????????????????????????????????????????? | | #???????????????????????????????????????????????? | | #???????????????????????????????????????????????? | | #???????????????????????????????????????????????? | | ###?????????????????????????????????????????????? | | ""#?????????????????????????????????????????????? | | " #?????????????????????????????????????????????? | +----------------------------------------------------+ Best States ------------- Heat Dissipation 37 Energy Generation 21 Energy Capacity 290 Matter Stores 500 Matter Capacity 500 Sight Range 16 Terrain Scan Density 10 Armor Coverage 825 Weapon Cycling 15 Evasion (%) 50 Targeting Accuracy 8 Recoil Reduction 3 Kinecelleration 30 Relay Coupler Types 2 Relay Coupler Value 64 Item Schematics ----------------- None Robot Schematics ------------------ None Fabricated ------------ Nothing Repaired ---------- Lgt. Treads | 10% | -7/Factory Studied --------- None Alien Tech Used ----------------- None Achievements -------------- A New Friend Challenges ------------ None Game ------ Seed RapidSeismicField Manual? 0 Play Time 01:53:53 Cumulative 44.6 hours Start 2026.07.11 @ 15:27:15 End 2026.07.11 @ 19:34:00 Sessions 3 Manual Loads 0 Difficulty Rogue Special Mode None Game No. 93 Rogue 93 Adventurer 0 Explorer 0 Win Type - Total 0 Types 0/0/0/0/0/0/0/0/0/0 Lore% 28 Gallery% 32 Achievement% 24 Wizard Run 0 Options --------- Layout 2 ASCII 0 Keyboard 0 Movement Mouse Keybinds 0 Fullscreen 1 Font 48/Smallcaps Map View 50x44 Zoom Use 0% Tactical HUD 1 Map Filters NONE Filters NONE Steam 1 RUN: f83aecae-b5fd-4105-a3a8-7407fa21caaf